[Event "Late-Titled-Tuesday-Blitz-August-29-2023"]
[Site "Chess.com"]
[Date "2023.08.29"]
[Round "1"]
[White "aqibjbutt"]
[Black "chessisveryfun1264"]
[Result "1/2-1/2"]
[WhiteElo "1992"]
[BlackElo "2518"]
[TimeControl "180+1"]
[EndTime "14:05:47 PDT"]
[Termination "Game drawn by repetition"]

1. d3 {[%clk 0:03:00.3]} 1... e5 {[%clk 0:02:58]} 2. g3 {[%clk 0:03:01]} 2... d5
{[%clk 0:02:46.5]} 3. Bg2 {[%clk 0:03:01.2]} 3... Nc6 {[%clk 0:02:42.5]} 4. c3
{[%clk 0:02:50.7]} 4... g6 {[%clk 0:02:41.2]} 5. Nd2 {[%clk 0:02:44.7]} 5... Bg7
{[%clk 0:02:41.2]} 6. Nb3 {[%clk 0:02:36.4]} 6... b6 {[%clk 0:02:37.2]} 7. Nf3
{[%clk 0:02:28.4]} 7... Bb7 {[%clk 0:02:29.2]} 8. e4 {[%clk 0:02:26.4]} 8...
Nge7 {[%clk 0:02:29.2]} 9. Qe2 {[%clk 0:02:24.4]} 9... O-O {[%clk 0:02:28.2]}
10. O-O {[%clk 0:02:24]} 10... Kh8 {[%clk 0:02:27.1]} 11. Ng5 {[%clk 0:02:04.1]}
11... h6 {[%clk 0:02:26.3]} 12. Nh3 {[%clk 0:02:04]} 12... f5 {[%clk 0:02:24.9]}
13. f4 {[%clk 0:02:04]} 13... dxe4 {[%clk 0:02:18.1]} 14. dxe4 {[%clk
0:02:02.6]} 14... Re8 {[%clk 0:02:14.3]} 15. Kh1 {[%clk 0:01:46.2]} 15... exf4
{[%clk 0:02:12.6]} 16. Nxf4 {[%clk 0:01:44.5]} 16... Ne5 {[%clk 0:02:12.3]} 17.
exf5 {[%clk 0:01:40.1]} 17... Bxg2+ {[%clk 0:02:10.1]} 18. Qxg2 {[%clk 0:01:41]}
18... Nxf5 {[%clk 0:02:10.4]} 19. Bd2 {[%clk 0:01:35.9]} 19... Qd6 {[%clk
0:02:06.5]} 20. Rae1 {[%clk 0:01:35.7]} 20... Nc4 {[%clk 0:02:05.9]} 21. Bc1
{[%clk 0:01:15.6]} 21... Nce3 {[%clk 0:02:03.5]} 22. Bxe3 {[%clk 0:01:14.6]}
22... Nxe3 {[%clk 0:02:04.4]} 23. Rxe3 {[%clk 0:00:48]} 23... Rxe3 {[%clk
0:02:00.2]} 24. Qxa8+ {[%clk 0:00:47.5]} 24... Kh7 {[%clk 0:02:00.5]} 25. Qd5
{[%clk 0:00:44.3]} 25... Qe7 {[%clk 0:01:56.3]} 26. Nd4 {[%clk 0:00:41.3]} 26...
c5 {[%clk 0:01:44.1]} 27. Nde6 {[%clk 0:00:34]} 27... Re5 {[%clk 0:01:44.1]} 28.
Qd8 {[%clk 0:00:31.1]} 28... Rxe6 {[%clk 0:01:44.3]} 29. Nxe6 {[%clk 0:00:30.9]}
29... Qxe6 {[%clk 0:01:45.2]} 30. Qc7 {[%clk 0:00:25.8]} 30... Qe4+ {[%clk
0:01:42.2]} 31. Kg1 {[%clk 0:00:24.9]} 31... Qe3+ {[%clk 0:01:42.8]} 32. Kg2
{[%clk 0:00:24.2]} 32... Qe4+ {[%clk 0:01:42.8]} 33. Rf3 {[%clk 0:00:22.2]}
33... Qe2+ {[%clk 0:01:40.8]} 34. Rf2 {[%clk 0:00:22.4]} 34... Qe4+ {[%clk
0:01:41.4]} 35. Kg1 {[%clk 0:00:22.5]} 35... Qe1+ {[%clk 0:01:41.3]} 36. Kg2
{[%clk 0:00:22.9]} 36... Qe4+ {[%clk 0:01:41.5]} 37. Kg1 {[%clk 0:00:20.9]}
37... Qe1+ {[%clk 0:01:36.3]} 38. Kg2 {[%clk 0:00:21.1]} 38... Qe4+ {[%clk
0:01:34.9]} 1/2-1/2

[Event "Late-Titled-Tuesday-Blitz-August-29-2023"]
[Site "Chess.com"]
[Date "2023.08.29"]
[Round "1"]
[White "tptagain"]
[Black "Haykoooo0o"]
[Result "1-0"]
[WhiteElo "2886"]
[BlackElo "2471"]
[TimeControl "180+1"]
[EndTime "14:05:50 PDT"]
[Termination "tptagain won by resignation"]

1. Nf3 {[%clk 0:03:00.9]} 1... d5 {[%clk 0:02:54.6]} 2. e3 {[%clk 0:03:00.6]}
2... Nf6 {[%clk 0:02:53.9]} 3. c4 {[%clk 0:03:00.7]} 3... c6 {[%clk 0:02:54.2]}
4. Nc3 {[%clk 0:03:00.3]} 4... Bg4 {[%clk 0:02:48.7]} 5. Qb3 {[%clk 0:02:56.3]}
5... Qb6 {[%clk 0:02:48]} 6. cxd5 {[%clk 0:02:55.7]} 6... Qxb3 {[%clk
0:02:47.1]} 7. axb3 {[%clk 0:02:55.6]} 7... Bxf3 {[%clk 0:02:45.7]} 8. gxf3
{[%clk 0:02:54.7]} 8... Nxd5 {[%clk 0:02:44.8]} 9. d4 {[%clk 0:02:45]} 9... e6
{[%clk 0:02:42]} 10. Bd2 {[%clk 0:02:44.5]} 10... Nd7 {[%clk 0:02:41.4]} 11. Ne4
{[%clk 0:02:40.6]} 11... Be7 {[%clk 0:02:34.7]} 12. Bd3 {[%clk 0:02:32.4]} 12...
g6 {[%clk 0:02:32.4]} 13. Ke2 {[%clk 0:02:31.7]} 13... a6 {[%clk 0:02:32.3]} 14.
f4 {[%clk 0:02:28.4]} 14... h5 {[%clk 0:02:32.2]} 15. Bc3 {[%clk 0:02:23.7]}
15... N7f6 {[%clk 0:02:27]} 16. Nd2 {[%clk 0:02:23.2]} 16... Nd7 {[%clk
0:02:22.9]} 17. Nc4 {[%clk 0:02:20.3]} 17... O-O-O {[%clk 0:02:03.6]} 18. Ba5
{[%clk 0:02:14.7]} 18... b6 {[%clk 0:01:45.2]} 19. Bd2 {[%clk 0:02:08]} 19...
Kb7 {[%clk 0:01:37.2]} 20. Ne5 {[%clk 0:01:46.2]} 20... Nxe5 {[%clk 0:01:30.7]}
21. Bxa6+ {[%clk 0:01:45.2]} 21... Kc7 {[%clk 0:01:27.2]} 22. fxe5 {[%clk
0:01:45.7]} 22... b5 {[%clk 0:01:20.4]} 23. Ba5+ {[%clk 0:01:45.7]} 23... Nb6
{[%clk 0:01:19]} 24. Rhc1 {[%clk 0:01:46.1]} 24... Rd5 {[%clk 0:00:59]} 25. e4
{[%clk 0:01:31.9]} 25... Rxd4 {[%clk 0:00:52.6]} 26. Bxb5 {[%clk 0:01:32]} 26...
c5 {[%clk 0:00:38.7]} 27. Bc3 {[%clk 0:01:32]} 27... Rxe4+ {[%clk 0:00:28.5]}
28. Kf3 {[%clk 0:01:32.2]} 28... Rh4 {[%clk 0:00:21.6]} 29. Ra7+ {[%clk
0:01:32]} 29... Kd8 {[%clk 0:00:21.3]} 30. Ba5 {[%clk 0:01:23.2]} 1-0

[Event "Late-Titled-Tuesday-Blitz-August-29-2023"]
[Site "Chess.com"]
[Date "2023.08.29"]
[Round "1"]
[White "Nick12772"]
[Black "Korchmar_Vasiliy"]
[Result "0-1"]
[WhiteElo "2381"]
[BlackElo "2684"]
[TimeControl "180+1"]
[EndTime "14:05:50 PDT"]
[Termination "Korchmar_Vasiliy won by resignation"]

1. Nf3 {[%clk 0:03:00.9]} 1... d5 {[%clk 0:02:59.5]} 2. g3 {[%clk 0:03:00.6]}
2... g6 {[%clk 0:02:59.1]} 3. Bg2 {[%clk 0:02:58.7]} 3... Bg7 {[%clk 0:02:59.6]}
4. O-O {[%clk 0:02:59.4]} 4... e5 {[%clk 0:03:00]} 5. d3 {[%clk 0:02:58.4]} 5...
Ne7 {[%clk 0:03:00.3]} 6. e4 {[%clk 0:02:56.2]} 6... O-O {[%clk 0:02:59.9]} 7.
exd5 {[%clk 0:02:52.5]} 7... Nxd5 {[%clk 0:03:00.8]} 8. Re1 {[%clk 0:02:48.9]}
8... Nc6 {[%clk 0:03:01.1]} 9. Nc3 {[%clk 0:02:41.3]} 9... Nxc3 {[%clk
0:03:00.5]} 10. bxc3 {[%clk 0:02:42.2]} 10... Rb8 {[%clk 0:02:53.3]} 11. Bb2
{[%clk 0:02:25.3]} 11... b6 {[%clk 0:02:52.7]} 12. Nd2 {[%clk 0:02:14.6]} 12...
Bb7 {[%clk 0:02:52.6]} 13. Nc4 {[%clk 0:02:15]} 13... Re8 {[%clk 0:02:50.8]} 14.
Ne3 {[%clk 0:02:11.4]} 14... Na5 {[%clk 0:02:48]} 15. Bxb7 {[%clk 0:02:03]}
15... Nxb7 {[%clk 0:02:48.9]} 16. c4 {[%clk 0:02:01.2]} 16... Nc5 {[%clk
0:02:43.8]} 17. Nd5 {[%clk 0:01:54.4]} 17... c6 {[%clk 0:02:41.7]} 18. Ne3
{[%clk 0:01:54.3]} 18... Qd7 {[%clk 0:02:40.2]} 19. Qg4 {[%clk 0:01:36.7]} 19...
f5 {[%clk 0:02:38.3]} 20. Qh3 {[%clk 0:01:32.7]} 20... Na4 {[%clk 0:02:38.1]}
21. Rab1 {[%clk 0:01:23.8]} 21... Nxb2 {[%clk 0:02:37.3]} 22. Rxb2 {[%clk
0:01:24.7]} 22... e4 {[%clk 0:02:38]} 23. Rb3 {[%clk 0:01:24.7]} 23... Rbd8
{[%clk 0:02:33.1]} 24. Rd1 {[%clk 0:01:19.8]} 24... Qe6 {[%clk 0:02:33.5]} 25.
Ng2 {[%clk 0:01:13.2]} 25... exd3 {[%clk 0:02:23.7]} 26. cxd3 {[%clk 0:01:05.4]}
26... Qe2 {[%clk 0:02:23.8]} 27. Rbb1 {[%clk 0:00:52.8]} 27... Qxa2 {[%clk
0:02:20.1]} 28. Ra1 {[%clk 0:00:48.9]} 28... Bxa1 {[%clk 0:02:18.7]} 29. Nf4
{[%clk 0:00:48.3]} 29... Bg7 {[%clk 0:02:12.1]} 30. Qh4 {[%clk 0:00:48.1]} 30...
Qb2 {[%clk 0:02:07.7]} 31. d4 {[%clk 0:00:40.8]} 31... Qb3 {[%clk 0:02:05.2]}
32. Rc1 {[%clk 0:00:36.7]} 32... Rxd4 {[%clk 0:02:05.1]} 33. Qg5 {[%clk
0:00:34.2]} 33... Rxc4 {[%clk 0:02:04.1]} 34. Rf1 {[%clk 0:00:33.6]} 34... Rxf4
{[%clk 0:02:03.4]} 35. Qxf4 {[%clk 0:00:33.7]} 35... Qd5 {[%clk 0:02:03.8]} 36.
Qc7 {[%clk 0:00:33.4]} 36... a5 {[%clk 0:01:57.2]} 37. Qa7 {[%clk 0:00:32.6]}
37... h5 {[%clk 0:01:50.1]} 38. h4 {[%clk 0:00:32.5]} 38... Bd4 {[%clk 0:01:44]}
39. Kh2 {[%clk 0:00:26.5]} 39... f4 {[%clk 0:01:43.2]} 40. Qc7 {[%clk
0:00:23.4]} 40... fxg3+ {[%clk 0:01:37.2]} 41. fxg3 {[%clk 0:00:24]} 41... Re2+
{[%clk 0:01:36.1]} 42. Kh3 {[%clk 0:00:24.5]} 42... Qe6+ {[%clk 0:01:36.1]} 0-1

[Event "Late-Titled-Tuesday-Blitz-August-29-2023"]
[Site "Chess.com"]
[Date "2023.08.29"]
[Round "1"]
[White "GreatOwl02"]
[Black "Ali_rastbod"]
[Result "0-1"]
[WhiteElo "2360"]
[BlackElo "2674"]
[TimeControl "180+1"]
[EndTime "14:05:50 PDT"]
[Termination "Ali_rastbod won by resignation"]

1. d4 {[%clk 0:02:56.3]} 1... Nf6 {[%clk 0:02:57.7]} 2. Nf3 {[%clk 0:02:55.1]}
2... c5 {[%clk 0:02:57.1]} 3. d5 {[%clk 0:02:52.6]} 3... b5 {[%clk 0:02:57.5]}
4. a4 {[%clk 0:02:12.7]} 4... b4 {[%clk 0:02:57.3]} 5. c4 {[%clk 0:01:48]} 5...
e6 {[%clk 0:02:56.4]} 6. Bg5 {[%clk 0:01:43.5]} 6... exd5 {[%clk 0:02:53.1]} 7.
cxd5 {[%clk 0:01:42.9]} 7... h6 {[%clk 0:02:51.6]} 8. Bxf6 {[%clk 0:01:41.3]}
8... Qxf6 {[%clk 0:02:50.8]} 9. Qc2 {[%clk 0:01:41.6]} 9... d6 {[%clk
0:02:37.6]} 10. e4 {[%clk 0:01:40.9]} 10... g5 {[%clk 0:02:33.7]} 11. Nbd2
{[%clk 0:01:20.9]} 11... Bg7 {[%clk 0:02:31.8]} 12. Nc4 {[%clk 0:00:55]} 12...
O-O {[%clk 0:02:30.3]} 13. Be2 {[%clk 0:00:55]} 13... g4 {[%clk 0:02:30.4]} 14.
Nfd2 {[%clk 0:00:55]} 14... h5 {[%clk 0:02:30.5]} 15. O-O-O {[%clk 0:00:33.8]}
15... Nd7 {[%clk 0:02:28.1]} 16. f3 {[%clk 0:00:28.6]} 16... Nb6 {[%clk
0:02:24.2]} 17. Rdf1 {[%clk 0:00:26]} 17... Qe7 {[%clk 0:02:17.2]} 18. fxg4
{[%clk 0:00:23.2]} 18... hxg4 {[%clk 0:02:18.1]} 19. h3 {[%clk 0:00:20.5]} 19...
g3 {[%clk 0:02:17.8]} 20. Rf3 {[%clk 0:00:20.2]} 20... f5 {[%clk 0:02:14.5]} 21.
Bd3 {[%clk 0:00:17.6]} 21... f4 {[%clk 0:02:14.3]} 22. Rhf1 {[%clk 0:00:17.4]}
22... Be5 {[%clk 0:02:14.9]} 23. a5 {[%clk 0:00:15.8]} 23... Nxc4 {[%clk
0:02:14.3]} 24. Nxc4 {[%clk 0:00:16.7]} 24... Bd7 {[%clk 0:02:08.6]} 25. Qd2
{[%clk 0:00:16.5]} 25... Qh4 {[%clk 0:02:06.3]} 26. Bc2 {[%clk 0:00:12.2]} 26...
Kg7 {[%clk 0:02:02.6]} 27. Bb3 {[%clk 0:00:11.5]} 27... Rf6 {[%clk 0:01:59.7]}
28. Nxe5 {[%clk 0:00:11.6]} 28... dxe5 {[%clk 0:01:59.6]} 29. d6 {[%clk
0:00:12.5]} 29... Bc6 {[%clk 0:01:49]} 30. Kb1 {[%clk 0:00:07.8]} 30... Rd8
{[%clk 0:01:47.9]} 31. Qc2 {[%clk 0:00:08]} 31... Rfxd6 {[%clk 0:01:47.6]} 32.
Re1 {[%clk 0:00:08]} 32... Qe7 {[%clk 0:01:43.6]} 33. Ka2 {[%clk 0:00:07.4]}
33... Rd4 {[%clk 0:01:40.7]} 34. Rc1 {[%clk 0:00:06.5]} 34... Bxe4 {[%clk
0:01:39.7]} 35. Qxc5 {[%clk 0:00:05.9]} 35... Qxc5 {[%clk 0:01:40.6]} 36. Rxc5
{[%clk 0:00:06.4]} 36... Bxf3 {[%clk 0:01:41.3]} 37. gxf3 {[%clk 0:00:06.9]}
37... g2 {[%clk 0:01:41.9]} 0-1

[Event "Late-Titled-Tuesday-Blitz-August-29-2023"]
[Site "Chess.com"]
[Date "2023.08.29"]
[Round "1"]
[White "MITerryble"]
[Black "Bilan_Danila"]
[Result "1-0"]
[WhiteElo "2921"]
[BlackElo "2485"]
[TimeControl "180+1"]
[EndTime "14:05:54 PDT"]
[Termination "MITerryble won by resignation"]

1. d4 {[%clk 0:03:00.9]} 1... d5 {[%clk 0:02:57.9]} 2. Nf3 {[%clk 0:03:00.5]}
2... Nf6 {[%clk 0:02:57.6]} 3. c4 {[%clk 0:03:00.7]} 3... c6 {[%clk 0:02:57.9]}
4. Nc3 {[%clk 0:02:50.7]} 4... e6 {[%clk 0:02:57.6]} 5. Bg5 {[%clk 0:02:50.3]}
5... Nbd7 {[%clk 0:02:57.1]} 6. e3 {[%clk 0:02:49.7]} 6... Qa5 {[%clk
0:02:48.9]} 7. Nd2 {[%clk 0:02:47.9]} 7... Bb4 {[%clk 0:02:46.3]} 8. Bxf6 {[%clk
0:02:47.7]} 8... Nxf6 {[%clk 0:02:46]} 9. Qc2 {[%clk 0:02:47.9]} 9... O-O {[%clk
0:02:42.5]} 10. Bd3 {[%clk 0:02:45.8]} 10... dxc4 {[%clk 0:02:27.5]} 11. Nxc4
{[%clk 0:02:46.7]} 11... Qg5 {[%clk 0:02:26.8]} 12. O-O {[%clk 0:02:44.8]} 12...
b6 {[%clk 0:02:10.8]} 13. Ne4 {[%clk 0:02:41.3]} 13... Nxe4 {[%clk 0:01:54]} 14.
Bxe4 {[%clk 0:02:42.2]} 14... Bb7 {[%clk 0:01:52.4]} 15. Bxh7+ {[%clk
0:02:42.1]} 15... Kh8 {[%clk 0:01:53]} 16. Be4 {[%clk 0:02:42.7]} 16... Rac8
{[%clk 0:01:36.5]} 17. f4 {[%clk 0:02:29.5]} 17... Qe7 {[%clk 0:01:26]} 18. Rf3
{[%clk 0:02:20.5]} 18... f5 {[%clk 0:01:21.6]} 19. Ne5 {[%clk 0:02:20.3]} 19...
Qf6 {[%clk 0:01:04.7]} 20. Rh3+ {[%clk 0:02:14.7]} 20... Kg8 {[%clk 0:01:03.8]}
21. Bf3 {[%clk 0:02:15.1]} 21... Rc7 {[%clk 0:00:50.7]} 22. Rg3 {[%clk
0:01:46.7]} 22... Rfc8 {[%clk 0:00:42.8]} 23. Qb3 {[%clk 0:01:42.7]} 23... Bd6
{[%clk 0:00:19.6]} 24. Rg6 {[%clk 0:01:41.5]} 24... Bxe5 {[%clk 0:00:19.9]} 25.
Rxf6 {[%clk 0:01:41.8]} 25... Bxf6 {[%clk 0:00:20.8]} 26. Qxe6+ {[%clk
0:01:42.2]} 26... Kf8 {[%clk 0:00:21.4]} 27. Qxf5 {[%clk 0:01:40.2]} 27... Re7
{[%clk 0:00:20.4]} 28. Kf2 {[%clk 0:01:33]} 28... Kg8 {[%clk 0:00:16.5]} 29. Be4
{[%clk 0:01:25.7]} 29... Rce8 {[%clk 0:00:09.4]} 30. Qh7+ {[%clk 0:01:25.9]}
30... Kf8 {[%clk 0:00:09.8]} 31. Bg6 {[%clk 0:01:22.2]} 1-0

[Event "Late-Titled-Tuesday-Blitz-August-29-2023"]
[Site "Chess.com"]
[Date "2023.08.29"]
[Round "1"]
[White "Kostukov_Alex"]
[Black "Berardino"]
[Result "1-0"]
[WhiteElo "2403"]
[BlackElo "2672"]
[TimeControl "180+1"]
[EndTime "14:05:55 PDT"]
[Termination "Kostukov_Alex won on time"]

1. g3 {[%clk 0:02:52.5]} 1... d5 {[%clk 0:02:58.6]} 2. Bg2 {[%clk 0:02:53]} 2...
e5 {[%clk 0:02:57.5]} 3. c4 {[%clk 0:02:50.6]} 3... d4 {[%clk 0:02:55]} 4. d3
{[%clk 0:02:50.1]} 4... c5 {[%clk 0:02:49.3]} 5. Nf3 {[%clk 0:02:49.1]} 5... Nc6
{[%clk 0:02:48.7]} 6. O-O {[%clk 0:02:50]} 6... Bd6 {[%clk 0:02:46.2]} 7. e3
{[%clk 0:02:50]} 7... Nge7 {[%clk 0:02:35.5]} 8. exd4 {[%clk 0:02:50]} 8... cxd4
{[%clk 0:02:34.4]} 9. a3 {[%clk 0:02:48.3]} 9... a5 {[%clk 0:02:33.8]} 10. Ng5
{[%clk 0:02:47]} 10... O-O {[%clk 0:02:11.5]} 11. Qh5 {[%clk 0:02:42.9]} 11...
Bf5 {[%clk 0:01:58.9]} 12. Ne4 {[%clk 0:02:41.3]} 12... Bc7 {[%clk 0:01:52.7]}
13. Qe2 {[%clk 0:02:18.4]} 13... Rb8 {[%clk 0:01:35.1]} 14. Bd2 {[%clk
0:02:11.8]} 14... Bg6 {[%clk 0:01:11.4]} 15. b4 {[%clk 0:02:09.4]} 15... axb4
{[%clk 0:01:10.2]} 16. axb4 {[%clk 0:02:10.3]} 16... b6 {[%clk 0:01:03.6]} 17.
b5 {[%clk 0:02:02.1]} 17... Na5 {[%clk 0:01:00.2]} 18. Bxa5 {[%clk 0:01:55.5]}
18... bxa5 {[%clk 0:01:00.2]} 19. Nc5 {[%clk 0:01:56.1]} 19... h6 {[%clk
0:00:33.5]} 20. Nd2 {[%clk 0:01:54.5]} 20... Qc8 {[%clk 0:00:31.2]} 21. Na6
{[%clk 0:01:49.5]} 21... Rb6 {[%clk 0:00:24.9]} 22. Nxc7 {[%clk 0:01:43.8]}
22... Qxc7 {[%clk 0:00:25]} 23. Rxa5 {[%clk 0:01:43.8]} 23... f5 {[%clk
0:00:21]} 24. Rfa1 {[%clk 0:01:41.8]} 24... Qd6 {[%clk 0:00:04.6]} 25. Ra6
{[%clk 0:01:30.1]} 25... Rfb8 {[%clk 0:00:03.1]} 26. Nb3 {[%clk 0:01:26.9]}
26... Qb4 {[%clk 0:00:02.8]} 27. Rxb6 {[%clk 0:01:23.4]} 27... Rxb6 {[%clk
0:00:02.6]} 28. Qxe5 {[%clk 0:01:21]} 28... Qxb3 {[%clk 0:00:02.6]} 29. Qxe7
{[%clk 0:01:20.9]} 29... Kh7 {[%clk 0:00:02.7]} 30. Ra7 {[%clk 0:01:18.2]} 1-0

[Event "Late-Titled-Tuesday-Blitz-August-29-2023"]
[Site "Chess.com"]
[Date "2023.08.29"]
[Round "1"]
[White "joksijoksi"]
[Black "GGuseinov"]
[Result "0-1"]
[WhiteElo "2456"]
[BlackElo "2860"]
[TimeControl "180+1"]
[EndTime "14:06:06 PDT"]
[Termination "GGuseinov won by resignation"]

1. d4 {[%clk 0:02:59.7]} 1... Nf6 {[%clk 0:02:57.5]} 2. c4 {[%clk 0:02:58.9]}
2... g6 {[%clk 0:02:50.3]} 3. Nc3 {[%clk 0:02:57.4]} 3... Bg7 {[%clk 0:02:50.3]}
4. e4 {[%clk 0:02:56.8]} 4... d6 {[%clk 0:02:51.2]} 5. Be2 {[%clk 0:02:56.6]}
5... O-O {[%clk 0:02:51.5]} 6. Be3 {[%clk 0:02:56.4]} 6... Na6 {[%clk
0:02:43.8]} 7. Nf3 {[%clk 0:02:36.5]} 7... e5 {[%clk 0:02:29.8]} 8. d5 {[%clk
0:02:36.2]} 8... c6 {[%clk 0:02:20.1]} 9. O-O {[%clk 0:02:33.2]} 9... Ng4 {[%clk
0:02:20.3]} 10. Bd2 {[%clk 0:02:23.6]} 10... c5 {[%clk 0:02:16.8]} 11. h3 {[%clk
0:02:21.5]} 11... Nf6 {[%clk 0:02:14.4]} 12. a3 {[%clk 0:02:21.6]} 12... Nh5
{[%clk 0:02:14]} 13. Ne1 {[%clk 0:02:16.5]} 13... Nf4 {[%clk 0:02:13.9]} 14. Nd3
{[%clk 0:02:15.3]} 14... Nxe2+ {[%clk 0:02:11.7]} 15. Qxe2 {[%clk 0:02:16.2]}
15... f5 {[%clk 0:02:12.3]} 16. exf5 {[%clk 0:02:12.7]} 16... gxf5 {[%clk
0:02:11.7]} 17. f4 {[%clk 0:02:12.9]} 17... e4 {[%clk 0:02:11.7]} 18. Ne1 {[%clk
0:02:11.6]} 18... Nc7 {[%clk 0:01:59.3]} 19. a4 {[%clk 0:02:06.4]} 19... Ne8
{[%clk 0:01:59.4]} 20. Nc2 {[%clk 0:02:04.5]} 20... Nf6 {[%clk 0:01:59.5]} 21.
Ne3 {[%clk 0:02:04.2]} 21... Qe8 {[%clk 0:01:59.4]} 22. Nb5 {[%clk 0:01:57.4]}
22... Qe7 {[%clk 0:01:59.4]} 23. a5 {[%clk 0:01:56.2]} 23... h5 {[%clk
0:01:55.9]} 24. b4 {[%clk 0:01:52.6]} 24... a6 {[%clk 0:01:51]} 25. Na3 {[%clk
0:01:48.9]} 25... Nd7 {[%clk 0:01:39.8]} 26. Rab1 {[%clk 0:01:11.9]} 26... Qf7
{[%clk 0:01:39]} 27. b5 {[%clk 0:01:08.3]} 27... Qg6 {[%clk 0:01:36.1]} 28. Rb3
{[%clk 0:00:57.1]} 28... Kh7 {[%clk 0:01:35.7]} 29. Rfb1 {[%clk 0:00:54.8]}
29... Rg8 {[%clk 0:01:36.1]} 30. Bc3 {[%clk 0:00:40.6]} 30... Bh6 {[%clk
0:01:35.4]} 31. Qf2 {[%clk 0:00:39.9]} 31... Ne5 {[%clk 0:01:27.3]} 32. Kh1
{[%clk 0:00:13.6]} 32... Nd3 {[%clk 0:01:27]} 33. Qf1 {[%clk 0:00:13.5]} 33...
Bxf4 {[%clk 0:01:23.9]} 34. Bd2 {[%clk 0:00:04.1]} 34... Qg3 {[%clk 0:01:22.6]}
35. Qg1 {[%clk 0:00:03.6]} 35... Nf2+ {[%clk 0:01:21.8]} 0-1

[Event "Late-Titled-Tuesday-Blitz-August-29-2023"]
[Site "Chess.com"]
[Date "2023.08.29"]
[Round "1"]
[White "JSlaby"]
[Black "Zhigalko_Sergei"]
[Result "1/2-1/2"]
[WhiteElo "2502"]
[BlackElo "2929"]
[TimeControl "180+1"]
[EndTime "14:06:13 PDT"]
[Termination "Game drawn by repetition"]

1. Nf3 {[%clk 0:03:00.9]} 1... d5 {[%clk 0:03:00]} 2. c4 {[%clk 0:03:00.5]} 2...
d4 {[%clk 0:02:59.2]} 3. g3 {[%clk 0:02:59.7]} 3... Nc6 {[%clk 0:02:55.3]} 4.
Bg2 {[%clk 0:02:59.1]} 4... e5 {[%clk 0:02:55.5]} 5. d3 {[%clk 0:02:59.3]} 5...
Nf6 {[%clk 0:02:55.6]} 6. O-O {[%clk 0:02:58.9]} 6... a5 {[%clk 0:02:55.7]} 7.
e3 {[%clk 0:02:58.2]} 7... Bc5 {[%clk 0:02:55.6]} 8. exd4 {[%clk 0:02:55.8]}
8... Bxd4 {[%clk 0:02:56.5]} 9. Nxd4 {[%clk 0:02:55]} 9... Nxd4 {[%clk
0:02:56.6]} 10. Re1 {[%clk 0:02:53.2]} 10... O-O {[%clk 0:02:56.6]} 11. Nc3
{[%clk 0:02:48.4]} 11... Re8 {[%clk 0:02:43.8]} 12. Bg5 {[%clk 0:02:44]} 12...
h6 {[%clk 0:02:42.4]} 13. Bxf6 {[%clk 0:02:41.2]} 13... Qxf6 {[%clk 0:02:43.3]}
14. f4 {[%clk 0:02:39.2]} 14... Bf5 {[%clk 0:02:32.8]} 15. Nd5 {[%clk
0:02:37.6]} 15... Qd6 {[%clk 0:02:32.3]} 16. Rc1 {[%clk 0:02:27.7]} 16... exf4
{[%clk 0:02:23.2]} 17. Nxf4 {[%clk 0:02:27.4]} 17... c6 {[%clk 0:02:12.7]} 18.
c5 {[%clk 0:02:18.8]} 18... Qd7 {[%clk 0:02:08.3]} 19. Qd2 {[%clk 0:02:13.6]}
19... Ne6 {[%clk 0:01:57]} 20. Nxe6 {[%clk 0:02:09.4]} 20... Bxe6 {[%clk
0:01:55.8]} 21. d4 {[%clk 0:02:01.4]} 21... Bxa2 {[%clk 0:01:49.5]} 22. b4
{[%clk 0:01:47.4]} 22... Bd5 {[%clk 0:01:45.4]} 23. bxa5 {[%clk 0:01:42.9]}
23... Bxg2 {[%clk 0:01:45.4]} 24. Kxg2 {[%clk 0:01:43.8]} 24... Qd5+ {[%clk
0:01:38.9]} 25. Kg1 {[%clk 0:01:42.9]} 25... h5 {[%clk 0:01:27.7]} 26. Rb1
{[%clk 0:01:27.9]} 26... Rxe1+ {[%clk 0:01:17]} 27. Rxe1 {[%clk 0:01:27.2]}
27... Rd8 {[%clk 0:01:16.8]} 28. Re7 {[%clk 0:01:24.2]} 28... Qb3 {[%clk
0:00:49.5]} 29. Qf4 {[%clk 0:01:18.1]} 29... Rf8 {[%clk 0:00:15.4]} 30. Qe5
{[%clk 0:01:18.3]} 30... Qd1+ {[%clk 0:00:03.8]} 31. Kg2 {[%clk 0:01:18.3]}
31... h4 {[%clk 0:00:03.7]} 32. gxh4 {[%clk 0:01:14.3]} 32... Qg4+ {[%clk
0:00:03.8]} 33. Kf2 {[%clk 0:01:14.6]} 33... Qxh4+ {[%clk 0:00:03.9]} 34. Kg2
{[%clk 0:01:15.1]} 34... Qg4+ {[%clk 0:00:04.1]} 35. Kf2 {[%clk 0:01:15.5]}
35... Qh4+ {[%clk 0:00:03.5]} 36. Kg2 {[%clk 0:01:15.9]} 36... Qg4+ {[%clk
0:00:01.6]} 37. Kf2 {[%clk 0:01:16.2]} 37... Qh4+ {[%clk 0:00:01.9]} 1/2-1/2

[Event "Late-Titled-Tuesday-Blitz-August-29-2023"]
[Site "Chess.com"]
[Date "2023.08.29"]
[Round "1"]
[White "Colombiano07"]
[Black "maciek_92"]
[Result "0-1"]
[WhiteElo "2417"]
[BlackElo "2721"]
[TimeControl "180+1"]
[EndTime "14:06:16 PDT"]
[Termination "maciek_92 won by resignation"]

1. d4 {[%clk 0:02:59.6]} 1... Nf6 {[%clk 0:02:55.2]} 2. c4 {[%clk 0:02:47.9]}
2... d6 {[%clk 0:02:55.3]} 3. Nc3 {[%clk 0:02:46.6]} 3... Nbd7 {[%clk
0:02:55.3]} 4. e4 {[%clk 0:02:45.3]} 4... e5 {[%clk 0:02:55.7]} 5. Nge2 {[%clk
0:02:40.9]} 5... g6 {[%clk 0:02:54.5]} 6. f3 {[%clk 0:02:18.7]} 6... Bg7 {[%clk
0:02:51.6]} 7. Be3 {[%clk 0:02:18.3]} 7... h5 {[%clk 0:02:46.5]} 8. Qd2 {[%clk
0:02:16.8]} 8... a6 {[%clk 0:02:45.1]} 9. h4 {[%clk 0:01:24.1]} 9... O-O {[%clk
0:02:41.9]} 10. O-O-O {[%clk 0:01:21.8]} 10... b5 {[%clk 0:02:42.5]} 11. Kb1
{[%clk 0:01:20.7]} 11... Bb7 {[%clk 0:02:34.8]} 12. Bh6 {[%clk 0:01:17.5]} 12...
b4 {[%clk 0:02:31.8]} 13. Nd5 {[%clk 0:01:16.4]} 13... a5 {[%clk 0:02:19.8]} 14.
g4 {[%clk 0:01:13]} 14... Bxd5 {[%clk 0:01:46.5]} 15. cxd5 {[%clk 0:01:11.7]}
15... exd4 {[%clk 0:01:43.8]} 16. Bxg7 {[%clk 0:01:10.8]} 16... Kxg7 {[%clk
0:01:43.7]} 17. g5 {[%clk 0:00:41.9]} 17... Ng8 {[%clk 0:01:43.8]} 18. Qxd4+
{[%clk 0:00:41.2]} 18... Kh7 {[%clk 0:01:44.4]} 19. Bh3 {[%clk 0:00:41.3]} 19...
Nc5 {[%clk 0:01:37.6]} 20. Nc1 {[%clk 0:00:39]} 20... a4 {[%clk 0:01:35]} 21.
Nd3 {[%clk 0:00:37.4]} 21... a3 {[%clk 0:01:31.2]} 22. Nxc5 {[%clk 0:00:35.5]}
22... dxc5 {[%clk 0:01:31.1]} 23. Qxc5 {[%clk 0:00:36.4]} 23... axb2 {[%clk
0:01:31.1]} 24. Rh2 {[%clk 0:00:32.7]} 24... b3 {[%clk 0:01:31.3]} 25. Rxb2
{[%clk 0:00:27.2]} 25... bxa2+ {[%clk 0:01:31.3]} 26. Ka1 {[%clk 0:00:27.3]}
26... Re8 {[%clk 0:01:18]} 27. Rc1 {[%clk 0:00:27]} 27... Re7 {[%clk 0:01:16.6]}
28. Rb7 {[%clk 0:00:23.6]} 28... Rb8 {[%clk 0:00:52.4]} 29. Rxc7 {[%clk
0:00:19.3]} 29... Rb1+ {[%clk 0:00:48.6]} 30. Rxb1 {[%clk 0:00:18.4]} 30...
axb1=Q+ {[%clk 0:00:48.4]} 31. Kxb1 {[%clk 0:00:19.3]} 31... Rxc7 {[%clk
0:00:48.5]} 0-1